[Event "Early-Titled-Tuesday-Blitz-February-20-2024"]
[Site "Chess.com"]
[Date "2024.02.20"]
[Round "4"]
[White "ATM622"]
[Black "karinachess1"]
[Result "1-0"]
[WhiteElo "2502"]
[BlackElo "2661"]
[TimeControl "180+1"]
[EndTime "8:39:52 PST"]
[Termination "ATM622 won by checkmate"]

1. d4 {[%clk 0:03:00.9]} 1... Nf6 {[%clk 0:02:59.9]} 2. c4 {[%clk 0:02:58.8]}
2... e6 {[%clk 0:03:00.1]} 3. g3 {[%clk 0:02:59]} 3... d5 {[%clk 0:03:00.6]} 4.
Bg2 {[%clk 0:02:57.8]} 4... dxc4 {[%clk 0:03:01.1]} 5. Nf3 {[%clk 0:02:58]} 5...
Nc6 {[%clk 0:03:01.5]} 6. O-O {[%clk 0:02:56.2]} 6... Rb8 {[%clk 0:03:01.8]} 7.
a4 {[%clk 0:02:53.4]} 7... a6 {[%clk 0:03:01.2]} 8. a5 {[%clk 0:02:53.5]} 8...
Bb4 {[%clk 0:03:00.5]} 9. Bd2 {[%clk 0:02:52.8]} 9... Nd5 {[%clk 0:02:52.9]} 10.
e4 {[%clk 0:02:51]} 10... Nf6 {[%clk 0:02:46.8]} 11. Bxb4 {[%clk 0:02:47.3]}
11... Nxb4 {[%clk 0:02:47.7]} 12. Qa4+ {[%clk 0:02:47.5]} 12... Nc6 {[%clk
0:02:48]} 13. d5 {[%clk 0:02:43.6]} 13... exd5 {[%clk 0:02:44.4]} 14. exd5
{[%clk 0:02:43.8]} 14... Qxd5 {[%clk 0:02:36.3]} 15. Re1+ {[%clk 0:02:39.9]}
15... Be6 {[%clk 0:02:30.6]} 16. Ne5 {[%clk 0:02:39.8]} 16... Qb5 {[%clk
0:02:27]} 17. Qxb5 {[%clk 0:02:34.1]} 17... axb5 {[%clk 0:02:27.2]} 18. Nxc6
{[%clk 0:02:34.5]} 18... bxc6 {[%clk 0:02:26.6]} 19. Bxc6+ {[%clk 0:02:35.1]}
19... Ke7 {[%clk 0:02:23.2]} 20. Rd1 {[%clk 0:02:08.4]} 20... Bd7 {[%clk
0:02:02.4]} 21. Bf3 {[%clk 0:02:00.9]} 21... c6 {[%clk 0:01:57.8]} 22. Nc3
{[%clk 0:01:58]} 22... Rhd8 {[%clk 0:01:52.3]} 23. Re1+ {[%clk 0:01:56.3]} 23...
Kf8 {[%clk 0:01:47.7]} 24. a6 {[%clk 0:01:52.4]} 24... Rb6 {[%clk 0:01:26.8]}
25. Red1 {[%clk 0:01:40]} 25... Ra8 {[%clk 0:01:23.9]} 26. Ne4 {[%clk 0:01:25]}
26... Nxe4 {[%clk 0:01:11.6]} 27. Rxd7 {[%clk 0:01:09.6]} 27... Nc5 {[%clk
0:01:11.4]} 28. Rc7 {[%clk 0:01:07.9]} 28... Rbxa6 {[%clk 0:01:05.1]} 29. Rxa6
{[%clk 0:01:03.6]} 29... Rxa6 {[%clk 0:01:06]} 30. Bxc6 {[%clk 0:01:03.5]} 30...
b4 {[%clk 0:00:45.5]} 31. Bb5 {[%clk 0:00:54]} 31... Ra1+ {[%clk 0:00:40]} 32.
Kg2 {[%clk 0:00:53.9]} 32... Nd3 {[%clk 0:00:18.3]} 33. Bxc4 {[%clk 0:00:52.5]}
33... Nxb2 {[%clk 0:00:14.4]} 34. Bxf7 {[%clk 0:00:46.6]} 34... Nd3 {[%clk
0:00:12.2]} 35. Bc4 {[%clk 0:00:41.6]} 35... Ne5 {[%clk 0:00:11.8]} 36. Be6
{[%clk 0:00:39.1]} 36... Rb1 {[%clk 0:00:06.9]} 37. f4 {[%clk 0:00:37.5]} 37...
Nd3 {[%clk 0:00:06]} 38. Bf5 {[%clk 0:00:34.4]} 38... Rb2+ {[%clk 0:00:05.6]}
39. Kf3 {[%clk 0:00:32.1]} 39... Ne1+ {[%clk 0:00:05.9]} 40. Ke4 {[%clk
0:00:27.4]} 40... g6 {[%clk 0:00:06.8]} 41. Be6 {[%clk 0:00:24.7]} 41... Rxh2
{[%clk 0:00:07]} 42. Rb7 {[%clk 0:00:18.6]} 42... Re2+ {[%clk 0:00:05.5]} 43.
Kd5 {[%clk 0:00:18.3]} 43... Nd3 {[%clk 0:00:05.1]} 44. Rxh7 {[%clk 0:00:12.6]}
44... Re3 {[%clk 0:00:04.9]} 45. Rf7+ {[%clk 0:00:09.7]} 45... Ke8 {[%clk
0:00:05.5]} 46. Rg7 {[%clk 0:00:07.2]} 46... Rxg3 {[%clk 0:00:05.7]} 47. Kd6
{[%clk 0:00:06.9]} 47... Kf8 {[%clk 0:00:03.4]} 48. Rg8# {[%clk 0:00:06.9]} 1-0

[Event "Early-Titled-Tuesday-Blitz-February-20-2024"]
[Site "Chess.com"]
[Date "2024.02.20"]
[Round "4"]
[White "yuriydovzik"]
[Black "KetiTsatsalashvili"]
[Result "1-0"]
[WhiteElo "2150"]
[BlackElo "2429"]
[TimeControl "180+1"]
[EndTime "8:39:54 PST"]
[Termination "yuriydovzik won on time"]

1. a3 {[%clk 0:02:57.7]} 1... Nf6 {[%clk 0:02:59.1]} 2. b4 {[%clk 0:02:53.9]}
2... g6 {[%clk 0:02:59.3]} 3. Bb2 {[%clk 0:02:52.9]} 3... Bg7 {[%clk 0:02:59.8]}
4. c4 {[%clk 0:02:52]} 4... O-O {[%clk 0:03:00.1]} 5. g3 {[%clk 0:02:49.3]} 5...
d5 {[%clk 0:02:57.3]} 6. cxd5 {[%clk 0:02:48.2]} 6... Qxd5 {[%clk 0:02:53.3]} 7.
Nf3 {[%clk 0:02:44.5]} 7... c6 {[%clk 0:02:47.1]} 8. Bg2 {[%clk 0:02:43.6]} 8...
Qd8 {[%clk 0:02:46.1]} 9. O-O {[%clk 0:02:42.1]} 9... Bg4 {[%clk 0:02:43.3]} 10.
h3 {[%clk 0:02:35.6]} 10... Bf5 {[%clk 0:02:40.6]} 11. d3 {[%clk 0:02:34.7]}
11... Qc8 {[%clk 0:02:34.1]} 12. Kh2 {[%clk 0:02:32.9]} 12... Rd8 {[%clk
0:02:34.3]} 13. Nbd2 {[%clk 0:02:31.3]} 13... h5 {[%clk 0:02:27.7]} 14. Qc2
{[%clk 0:02:24.6]} 14... a5 {[%clk 0:02:25.2]} 15. Nc4 {[%clk 0:02:10]} 15...
Nbd7 {[%clk 0:02:15.3]} 16. Nxa5 {[%clk 0:02:05.8]} 16... Nb6 {[%clk 0:02:09.5]}
17. e4 {[%clk 0:01:51.3]} 17... Bd7 {[%clk 0:02:01.5]} 18. Bd4 {[%clk
0:01:40.3]} 18... Qc7 {[%clk 0:01:51]} 19. Be5 {[%clk 0:01:38.5]} 19... Qc8
{[%clk 0:01:49.4]} 20. Rac1 {[%clk 0:01:32.7]} 20... Be6 {[%clk 0:01:39.4]} 21.
Nd4 {[%clk 0:01:21.3]} 21... Ng4+ {[%clk 0:01:26.4]} 22. hxg4 {[%clk 0:01:15.2]}
22... Bxe5 {[%clk 0:01:27]} 23. Nxe6 {[%clk 0:01:08.3]} 23... Qxe6 {[%clk
0:01:27.9]} 24. Nxb7 {[%clk 0:00:59.7]} 24... Rdc8 {[%clk 0:01:24.9]} 25. gxh5
{[%clk 0:00:55.7]} 25... Kg7 {[%clk 0:01:17.3]} 26. Bh3 {[%clk 0:00:53]} 26...
Qf6 {[%clk 0:01:11.4]} 27. f4 {[%clk 0:00:45.3]} 27... Bb2 {[%clk 0:00:49.7]}
28. e5 {[%clk 0:00:41.4]} 28... Bxe5 {[%clk 0:00:40.7]} 29. fxe5 {[%clk
0:00:39.2]} 29... Qxe5 {[%clk 0:00:41.6]} 30. Bxc8 {[%clk 0:00:29.2]} 30... Rxc8
{[%clk 0:00:41.2]} 31. Qc3 {[%clk 0:00:27.3]} 31... Qxc3 {[%clk 0:00:26.2]} 32.
Rxc3 {[%clk 0:00:26.7]} 32... Nd5 {[%clk 0:00:26.8]} 33. Rc5 {[%clk 0:00:24.4]}
33... Rh8 {[%clk 0:00:24.6]} 34. Rxc6 {[%clk 0:00:21.6]} 34... Rxh5+ {[%clk
0:00:24.6]} 35. Kg1 {[%clk 0:00:21.3]} 35... Rg5 {[%clk 0:00:22.4]} 36. Kh2
{[%clk 0:00:20]} 36... Rh5+ {[%clk 0:00:22]} 37. Kg1 {[%clk 0:00:19.4]} 37...
Rg5 {[%clk 0:00:22.3]} 38. Rf3 {[%clk 0:00:19.3]} 38... Re5 {[%clk 0:00:15]} 39.
Rc5 {[%clk 0:00:18.5]} 39... e6 {[%clk 0:00:12]} 40. Na5 {[%clk 0:00:17.3]}
40... Re2 {[%clk 0:00:08.7]} 41. Nc4 {[%clk 0:00:14.6]} 41... Ra2 {[%clk
0:00:06.6]} 42. Nd6 {[%clk 0:00:13.8]} 42... f5 {[%clk 0:00:05]} 43. Rxd5 {[%clk
0:00:13.1]} 43... exd5 {[%clk 0:00:04.7]} 44. d4 {[%clk 0:00:12.9]} 44... Rd2
{[%clk 0:00:03.9]} 45. Rb3 {[%clk 0:00:12.1]} 45... Rxd4 {[%clk 0:00:02.8]} 46.
b5 {[%clk 0:00:12.3]} 46... Rd1+ {[%clk 0:00:02]} 47. Kf2 {[%clk 0:00:10.8]}
47... Rd2+ {[%clk 0:00:02.9]} 48. Ke3 {[%clk 0:00:10.4]} 48... Rg2 {[%clk
0:00:03.1]} 49. Kf3 {[%clk 0:00:10.4]} 1-0

[Event "Early-Titled-Tuesday-Blitz-February-20-2024"]
[Site "Chess.com"]
[Date "2024.02.20"]
[Round "4"]
[White "campochess"]
[Black "MdChess1734"]
[Result "0-1"]
[WhiteElo "2145"]
[BlackElo "2393"]
[TimeControl "180+1"]
[EndTime "8:39:54 PST"]
[Termination "MdChess1734 won on time"]

1. e4 {[%clk 0:02:57.5]} 1... c5 {[%clk 0:02:58.8]} 2. b4 {[%clk 0:02:56.1]}
2... cxb4 {[%clk 0:02:58.6]} 3. d4 {[%clk 0:02:56]} 3... g6 {[%clk 0:02:59]} 4.
a3 {[%clk 0:02:54.6]} 4... bxa3 {[%clk 0:02:58.4]} 5. c3 {[%clk 0:02:54.8]} 5...
Bg7 {[%clk 0:02:59.1]} 6. Nxa3 {[%clk 0:02:54]} 6... Nc6 {[%clk 0:02:58.5]} 7.
Bd3 {[%clk 0:02:51.7]} 7... d6 {[%clk 0:02:56.2]} 8. Ne2 {[%clk 0:02:51.3]} 8...
Nf6 {[%clk 0:02:56.1]} 9. O-O {[%clk 0:02:50.2]} 9... O-O {[%clk 0:02:56.1]} 10.
Nc2 {[%clk 0:02:47]} 10... Qc7 {[%clk 0:02:53.1]} 11. Bd2 {[%clk 0:02:44.1]}
11... Rd8 {[%clk 0:02:26.4]} 12. Qc1 {[%clk 0:02:41.4]} 12... d5 {[%clk
0:02:14.3]} 13. e5 {[%clk 0:02:40.3]} 13... Ne4 {[%clk 0:02:15]} 14. Be1 {[%clk
0:02:33.6]} 14... f6 {[%clk 0:02:07.7]} 15. f3 {[%clk 0:02:33.6]} 15... Ng5
{[%clk 0:02:07.3]} 16. h4 {[%clk 0:02:22.6]} 16... Nf7 {[%clk 0:02:06.8]} 17. f4
{[%clk 0:02:22.8]} 17... Bg4 {[%clk 0:02:04.5]} 18. Ne3 {[%clk 0:02:16.6]} 18...
Bxe2 {[%clk 0:02:02.9]} 19. Bxe2 {[%clk 0:02:15.9]} 19... fxe5 {[%clk
0:02:03.5]} 20. fxe5 {[%clk 0:02:13.9]} 20... Bh6 {[%clk 0:02:03.4]} 21. Bd2
{[%clk 0:02:13.9]} 21... Qd7 {[%clk 0:01:25.7]} 22. Ng4 {[%clk 0:02:02.7]} 22...
Bxd2 {[%clk 0:01:22.7]} 23. Qxd2 {[%clk 0:02:02.5]} 23... Qe6 {[%clk 0:01:14.5]}
24. Rxf7 {[%clk 0:01:57.4]} 24... Kxf7 {[%clk 0:01:08.5]} 25. Qh6 {[%clk
0:01:57.1]} 25... Kg8 {[%clk 0:00:57.7]} 26. h5 {[%clk 0:01:52.5]} 26... Rf8
{[%clk 0:00:48.1]} 27. Qg5 {[%clk 0:01:49]} 27... Kh8 {[%clk 0:00:41.8]} 28. Bd3
{[%clk 0:01:43.2]} 28... gxh5 {[%clk 0:00:34.5]} 29. Qxh5 {[%clk 0:01:35.9]}
29... Qf7 {[%clk 0:00:34.6]} 30. Qh4 {[%clk 0:01:22.3]} 30... Qg7 {[%clk
0:00:34.5]} 31. Ne3 {[%clk 0:01:02.1]} 31... e6 {[%clk 0:00:32.5]} 32. Ng4
{[%clk 0:00:59.9]} 32... Rf4 {[%clk 0:00:31.2]} 33. Be2 {[%clk 0:00:47.1]} 33...
Rg8 {[%clk 0:00:29.6]} 34. Rf1 {[%clk 0:00:39.4]} 34... Rxf1+ {[%clk 0:00:13.4]}
35. Kxf1 {[%clk 0:00:38.9]} 35... Rf8+ {[%clk 0:00:13.1]} 36. Nf6 {[%clk
0:00:37.8]} 36... Ne7 {[%clk 0:00:11.9]} 37. Bd3 {[%clk 0:00:35.2]} 37... Ng8
{[%clk 0:00:11.4]} 38. Bxh7 {[%clk 0:00:19.2]} 38... Nxf6 {[%clk 0:00:11.9]} 39.
Bd3+ {[%clk 0:00:07.9]} 39... Nh7+ {[%clk 0:00:12]} 40. Kg1 {[%clk 0:00:07.9]}
40... Rg8 {[%clk 0:00:12.5]} 41. Bf1 {[%clk 0:00:06.6]} 41... Qg5 {[%clk
0:00:11.8]} 42. Qh3 {[%clk 0:00:05.3]} 42... Rg6 {[%clk 0:00:11.4]} 43. Bd3
{[%clk 0:00:04.1]} 43... Rh6 {[%clk 0:00:11.7]} 44. Qf3 {[%clk 0:00:03.9]} 44...
Kg7 {[%clk 0:00:12.1]} 0-1

[Event "Early-Titled-Tuesday-Blitz-February-20-2024"]
[Site "Chess.com"]
[Date "2024.02.20"]
[Round "4"]
[White "Rozhkov_V"]
[Black "Timerkhanov"]
[Result "1-0"]
[WhiteElo "2428"]
[BlackElo "2625"]
[TimeControl "180+1"]
[EndTime "8:39:56 PST"]
[Termination "Rozhkov_V won by resignation"]

1. c4 {[%clk 0:02:53.4]} 1... c6 {[%clk 0:02:58.7]} 2. e4 {[%clk 0:02:46.1]}
2... d5 {[%clk 0:02:59]} 3. cxd5 {[%clk 0:02:46.5]} 3... cxd5 {[%clk 0:02:58.8]}
4. exd5 {[%clk 0:02:47.4]} 4... Nf6 {[%clk 0:02:57.9]} 5. Bb5+ {[%clk
0:02:42.7]} 5... Nbd7 {[%clk 0:02:53.2]} 6. Nc3 {[%clk 0:02:41.8]} 6... g6
{[%clk 0:02:46.6]} 7. a4 {[%clk 0:02:36.6]} 7... a6 {[%clk 0:02:35.9]} 8. Bc4
{[%clk 0:02:35.4]} 8... Nb6 {[%clk 0:02:18.3]} 9. d3 {[%clk 0:02:24.6]} 9...
Nbxd5 {[%clk 0:02:16.2]} 10. Nxd5 {[%clk 0:02:24.5]} 10... Nxd5 {[%clk
0:02:15.3]} 11. Qb3 {[%clk 0:02:25.1]} 11... e6 {[%clk 0:02:10.4]} 12. Ne2
{[%clk 0:02:15]} 12... Bg7 {[%clk 0:02:08.8]} 13. Nc3 {[%clk 0:02:07.5]} 13...
Nxc3 {[%clk 0:01:50.8]} 14. bxc3 {[%clk 0:02:05.8]} 14... Qa5 {[%clk 0:01:51.3]}
15. Bd2 {[%clk 0:01:51.9]} 15... O-O {[%clk 0:01:50.9]} 16. O-O {[%clk
0:01:50.2]} 16... Rb8 {[%clk 0:01:30.7]} 17. Bf4 {[%clk 0:01:34.5]} 17... e5
{[%clk 0:01:24.5]} 18. Be3 {[%clk 0:01:27.6]} 18... Qc7 {[%clk 0:01:12.4]} 19.
Ba7 {[%clk 0:01:07.1]} 19... Ra8 {[%clk 0:01:09.6]} 20. Bb6 {[%clk 0:01:07.6]}
20... Qe7 {[%clk 0:01:08.8]} 21. a5 {[%clk 0:01:04.1]} 21... Bd7 {[%clk
0:01:05.9]} 22. Bd5 {[%clk 0:00:56.9]} 22... Bc6 {[%clk 0:01:02.1]} 23. Bxc6
{[%clk 0:00:54.8]} 23... bxc6 {[%clk 0:01:03]} 24. Qc4 {[%clk 0:00:55.4]} 24...
Qd7 {[%clk 0:01:03.6]} 25. Rab1 {[%clk 0:00:48.4]} 25... Qd5 {[%clk 0:01:02.6]}
26. Qxd5 {[%clk 0:00:28.3]} 26... cxd5 {[%clk 0:01:03.5]} 27. Bc5 {[%clk
0:00:25.2]} 27... Rfc8 {[%clk 0:01:02.2]} 28. d4 {[%clk 0:00:25.8]} 28... exd4
{[%clk 0:00:57.5]} 29. cxd4 {[%clk 0:00:26.7]} 29... Bf8 {[%clk 0:00:52.4]} 30.
Rfc1 {[%clk 0:00:25.1]} 30... Bxc5 {[%clk 0:00:49.7]} 31. dxc5 {[%clk
0:00:25.5]} 31... Rc6 {[%clk 0:00:50]} 32. Rb6 {[%clk 0:00:22.4]} 32... Rac8
{[%clk 0:00:50.6]} 33. Rxc6 {[%clk 0:00:12.6]} 33... Rxc6 {[%clk 0:00:51.5]} 34.
Kf1 {[%clk 0:00:13]} 34... Kf8 {[%clk 0:00:52.1]} 35. Ke2 {[%clk 0:00:13.6]}
35... Ke7 {[%clk 0:00:52.7]} 36. Kd3 {[%clk 0:00:14.3]} 36... Rf6 {[%clk
0:00:51.5]} 37. f3 {[%clk 0:00:12.2]} 37... Rf4 {[%clk 0:00:51.6]} 38. Rb1
{[%clk 0:00:12]} 38... Ra4 {[%clk 0:00:51.9]} 39. Rb7+ {[%clk 0:00:12.1]} 39...
Ke8 {[%clk 0:00:52.2]} 40. c6 {[%clk 0:00:10.2]} 40... Kd8 {[%clk 0:00:38.5]}
41. Rxf7 {[%clk 0:00:06.8]} 41... Rxa5 {[%clk 0:00:38.7]} 42. Rxh7 {[%clk
0:00:07.3]} 42... Rc5 {[%clk 0:00:38.6]} 43. Rd7+ {[%clk 0:00:06.2]} 43... Kc8
{[%clk 0:00:29.5]} 44. Kd4 {[%clk 0:00:06.5]} 44... Rxc6 {[%clk 0:00:29.3]} 45.
Rxd5 {[%clk 0:00:07.1]} 45... Rc2 {[%clk 0:00:29.7]} 46. Rg5 {[%clk 0:00:07.6]}
46... Rd2+ {[%clk 0:00:29.1]} 47. Kc3 {[%clk 0:00:07.3]} 47... Rf2 {[%clk
0:00:28.3]} 48. Rxg6 {[%clk 0:00:07.2]} 48... Kb7 {[%clk 0:00:27.5]} 49. h4
{[%clk 0:00:07.6]} 49... a5 {[%clk 0:00:28]} 50. h5 {[%clk 0:00:07.9]} 50... Rf1
{[%clk 0:00:28.2]} 51. h6 {[%clk 0:00:08]} 51... a4 {[%clk 0:00:28.4]} 52. Kb4
{[%clk 0:00:07.7]} 52... Rh1 {[%clk 0:00:27.5]} 53. Kxa4 {[%clk 0:00:07.9]}
53... Rh5 {[%clk 0:00:28.1]} 54. Kb4 {[%clk 0:00:08]} 54... Rh4+ {[%clk
0:00:28.7]} 55. g4 {[%clk 0:00:08.3]} 1-0

[Event "Early-Titled-Tuesday-Blitz-February-20-2024"]
[Site "Chess.com"]
[Date "2024.02.20"]
[Round "4"]
[White "AnaKuchava"]
[Black "Magic-Nelwyn"]
[Result "0-1"]
[WhiteElo "2214"]
[BlackElo "2485"]
[TimeControl "180+1"]
[EndTime "8:39:56 PST"]
[Termination "Magic-Nelwyn won on time"]

1. d4 {[%clk 0:03:00.9]} 1... d6 {[%clk 0:03:00.9]} 2. Nf3 {[%clk 0:02:56.3]}
2... g6 {[%clk 0:03:00.8]} 3. c4 {[%clk 0:02:53.5]} 3... Bg7 {[%clk 0:03:01.2]}
4. Nc3 {[%clk 0:02:36.9]} 4... e5 {[%clk 0:02:51.2]} 5. e4 {[%clk 0:02:35.3]}
5... exd4 {[%clk 0:02:50.8]} 6. Nxd4 {[%clk 0:02:34.4]} 6... Nc6 {[%clk
0:02:50.9]} 7. Be3 {[%clk 0:02:32.6]} 7... Nge7 {[%clk 0:02:50.5]} 8. Be2 {[%clk
0:02:26.8]} 8... O-O {[%clk 0:02:49.6]} 9. O-O {[%clk 0:02:26.1]} 9... f5 {[%clk
0:02:49.4]} 10. Qd2 {[%clk 0:02:10.5]} 10... fxe4 {[%clk 0:02:43.1]} 11. Nxe4
{[%clk 0:02:08.2]} 11... Nf5 {[%clk 0:02:33]} 12. Nxc6 {[%clk 0:02:01.3]} 12...
bxc6 {[%clk 0:02:32.1]} 13. Bg5 {[%clk 0:02:00.5]} 13... Qd7 {[%clk 0:02:20.6]}
14. Bf3 {[%clk 0:01:38.8]} 14... Rb8 {[%clk 0:02:15.8]} 15. Rab1 {[%clk
0:01:36.5]} 15... Nd4 {[%clk 0:01:23.9]} 16. Bd1 {[%clk 0:01:31.7]} 16... Qf5
{[%clk 0:01:20.9]} 17. f3 {[%clk 0:01:27.7]} 17... c5 {[%clk 0:01:09.7]} 18. Bc2
{[%clk 0:01:02]} 18... Qf7 {[%clk 0:01:01.8]} 19. Bd3 {[%clk 0:00:55.4]} 19...
Bf5 {[%clk 0:00:58]} 20. b3 {[%clk 0:00:52.9]} 20... Rbe8 {[%clk 0:00:43.9]} 21.
Nc3 {[%clk 0:00:42.5]} 21... Bxd3 {[%clk 0:00:27.7]} 22. Qxd3 {[%clk 0:00:43.4]}
22... c6 {[%clk 0:00:18.3]} 23. Rbe1 {[%clk 0:00:41.3]} 23... h6 {[%clk
0:00:16.5]} 24. Bh4 {[%clk 0:00:38.8]} 24... Kh7 {[%clk 0:00:15.1]} 25. Bg3
{[%clk 0:00:38.3]} 25... Qd7 {[%clk 0:00:08.6]} 26. Ne4 {[%clk 0:00:38]} 26...
Re6 {[%clk 0:00:06.5]} 27. Nd2 {[%clk 0:00:24.7]} 27... Rfe8 {[%clk 0:00:06.4]}
28. Rxe6 {[%clk 0:00:24.1]} 28... Rxe6 {[%clk 0:00:06.9]} 29. Re1 {[%clk
0:00:24.8]} 29... Qe7 {[%clk 0:00:06.8]} 30. Rxe6 {[%clk 0:00:23.2]} 30... Qxe6
{[%clk 0:00:07.7]} 31. Qe4 {[%clk 0:00:23.2]} 31... Ne2+ {[%clk 0:00:06.9]} 32.
Kf2 {[%clk 0:00:21.2]} 32... Qxe4 {[%clk 0:00:04.8]} 33. Nxe4 {[%clk 0:00:22.1]}
33... Nxg3 {[%clk 0:00:04.9]} 34. hxg3 {[%clk 0:00:21]} 34... Bf8 {[%clk
0:00:05.2]} 35. Ke3 {[%clk 0:00:20.3]} 35... Kg7 {[%clk 0:00:03.8]} 36. g4
{[%clk 0:00:20.2]} 36... Kf7 {[%clk 0:00:04.2]} 37. Kf4 {[%clk 0:00:18.9]} 37...
Ke6 {[%clk 0:00:04.3]} 38. g5 {[%clk 0:00:11.8]} 38... h5 {[%clk 0:00:03.9]} 39.
Nf6 {[%clk 0:00:10.9]} 39... Be7 {[%clk 0:00:03.1]} 40. Ne4 {[%clk 0:00:10.5]}
40... d5 {[%clk 0:00:02.6]} 41. cxd5+ {[%clk 0:00:11.4]} 41... cxd5 {[%clk
0:00:03.3]} 42. Nc3 {[%clk 0:00:11]} 42... Bd6+ {[%clk 0:00:04]} 43. Ke3 {[%clk
0:00:04.7]} 43... Be5 {[%clk 0:00:04.9]} 44. Nb5 {[%clk 0:00:04.1]} 44... a6
{[%clk 0:00:05]} 45. Na3 {[%clk 0:00:02.7]} 45... Kf5 {[%clk 0:00:04.2]} 46. Nc2
{[%clk 0:00:02.6]} 46... Kxg5 {[%clk 0:00:04.4]} 47. g3 {[%clk 0:00:01.6]} 47...
Bxg3 {[%clk 0:00:03.5]} 0-1

[Event "Early-Titled-Tuesday-Blitz-February-20-2024"]
[Site "Chess.com"]
[Date "2024.02.20"]
[Round "4"]
[White "AsaHoffmann"]
[Black "profedechess93"]
[Result "1-0"]
[WhiteElo "2364"]
[BlackElo "2640"]
[TimeControl "180+1"]
[EndTime "8:39:57 PST"]
[Termination "AsaHoffmann won by resignation"]

1. d4 {[%clk 0:02:58.4]} 1... d5 {[%clk 0:02:59.9]} 2. Bg5 {[%clk 0:02:55.1]}
2... Nd7 {[%clk 0:02:59.3]} 3. c4 {[%clk 0:02:54.6]} 3... c6 {[%clk 0:02:58.6]}
4. cxd5 {[%clk 0:02:54.6]} 4... cxd5 {[%clk 0:02:59.5]} 5. Nc3 {[%clk
0:02:54.5]} 5... Ngf6 {[%clk 0:03:00]} 6. e3 {[%clk 0:02:54.6]} 6... Ne4 {[%clk
0:02:51.8]} 7. Nxe4 {[%clk 0:02:52.7]} 7... dxe4 {[%clk 0:02:52.7]} 8. Qd2
{[%clk 0:02:32.2]} 8... h6 {[%clk 0:02:51.2]} 9. Bf4 {[%clk 0:02:31.1]} 9... Qb6
{[%clk 0:02:49]} 10. a3 {[%clk 0:02:28.3]} 10... e5 {[%clk 0:02:28.4]} 11. dxe5
{[%clk 0:02:24.2]} 11... Nc5 {[%clk 0:02:27.8]} 12. Bc4 {[%clk 0:02:17.9]} 12...
Be6 {[%clk 0:02:24.6]} 13. Bxe6 {[%clk 0:02:13.2]} 13... Nd3+ {[%clk 0:02:24.2]}
14. Kf1 {[%clk 0:02:12.3]} 14... Qxe6 {[%clk 0:01:57.4]} 15. Ne2 {[%clk
0:02:10.8]} 15... Bc5 {[%clk 0:01:55.4]} 16. Nc3 {[%clk 0:02:08.6]} 16... Qf5
{[%clk 0:01:49.2]} 17. Bg3 {[%clk 0:02:00.7]} 17... Rd8 {[%clk 0:01:46.4]} 18.
Qe2 {[%clk 0:01:55.2]} 18... h5 {[%clk 0:01:38.4]} 19. h3 {[%clk 0:01:54.7]}
19... h4 {[%clk 0:01:38.2]} 20. Bh2 {[%clk 0:01:54.1]} 20... Rh6 {[%clk
0:01:34.9]} 21. Kg1 {[%clk 0:01:44]} 21... Rg6 {[%clk 0:01:30.8]} 22. Rf1 {[%clk
0:01:39.5]} 22... Bb6 {[%clk 0:00:57.1]} 23. g4 {[%clk 0:01:22.9]} 23... Qf3
{[%clk 0:00:43.4]} 24. Qxf3 {[%clk 0:01:18.4]} 24... exf3 {[%clk 0:00:44.3]} 25.
Bf4 {[%clk 0:01:17.9]} 25... Nxb2 {[%clk 0:00:37.7]} 26. Ne4 {[%clk 0:01:17.6]}
26... Nc4 {[%clk 0:00:28.6]} 27. Kh2 {[%clk 0:01:14.9]} 27... Rd3 {[%clk
0:00:28.1]} 28. Ng5 {[%clk 0:01:13]} 28... Rxa3 {[%clk 0:00:23.6]} 29. Nxf3
{[%clk 0:01:12.6]} 29... Ra2 {[%clk 0:00:22.3]} 30. Nxh4 {[%clk 0:01:11.1]}
30... Rc6 {[%clk 0:00:23]} 31. Nf5 {[%clk 0:01:09.8]} 31... g6 {[%clk
0:00:22.4]} 32. Nd6+ {[%clk 0:01:08.1]} 32... Ke7 {[%clk 0:00:21.6]} 33. Nxc4
{[%clk 0:01:05.4]} 33... Rxc4 {[%clk 0:00:22.5]} 34. Kg3 {[%clk 0:01:04.4]}
34... Ke6 {[%clk 0:00:22.9]} 35. h4 {[%clk 0:01:04.3]} 35... Raa4 {[%clk
0:00:20.1]} 36. h5 {[%clk 0:01:03.7]} 36... g5 {[%clk 0:00:20.4]} 37. Bxg5
{[%clk 0:00:57.6]} 37... Rxg4+ {[%clk 0:00:19.8]} 38. Kf3 {[%clk 0:00:57.4]}
38... Rxg5 {[%clk 0:00:20.7]} 39. h6 {[%clk 0:00:57.6]} 39... Rg8 {[%clk
0:00:21.2]} 40. h7 {[%clk 0:00:56.4]} 40... Rh8 {[%clk 0:00:21.7]} 41. Rh5
{[%clk 0:00:56.2]} 41... Bc7 {[%clk 0:00:19.8]} 42. Rg1 {[%clk 0:00:51.1]} 42...
Bxe5 {[%clk 0:00:12.6]} 43. Rg8 {[%clk 0:00:49.2]} 43... Bf6 {[%clk 0:00:11.8]}
44. Rh6 {[%clk 0:00:49.4]} 44... Ke7 {[%clk 0:00:10]} 45. Rxf6 {[%clk
0:00:48.7]} 45... Rxh7 {[%clk 0:00:10.7]} 46. Rf4 {[%clk 0:00:45.8]} 46... Rxf4+
{[%clk 0:00:10.2]} 47. Kxf4 {[%clk 0:00:45.1]} 47... Kd6 {[%clk 0:00:10.3]} 48.
Ra8 {[%clk 0:00:44.2]} 48... a6 {[%clk 0:00:10.4]} 49. e4 {[%clk 0:00:44.4]}
49... Kc6 {[%clk 0:00:10.6]} 50. e5 {[%clk 0:00:43.7]} 50... Rh4+ {[%clk
0:00:08]} 51. Kg5 {[%clk 0:00:42]} 51... Rh3 {[%clk 0:00:08.2]} 52. f4 {[%clk
0:00:41.8]} 52... Rh7 {[%clk 0:00:07.6]} 53. Kf6 {[%clk 0:00:41.3]} 53... Kb6
{[%clk 0:00:07.7]} 54. f5 {[%clk 0:00:41.6]} 54... a5 {[%clk 0:00:08.2]} 55. e6
{[%clk 0:00:41.9]} 55... fxe6 {[%clk 0:00:08.6]} 56. fxe6 {[%clk 0:00:42.2]}
56... Kb5 {[%clk 0:00:07.8]} 57. e7 {[%clk 0:00:42.3]} 57... Rxe7 {[%clk
0:00:06.9]} 58. Kxe7 {[%clk 0:00:42.4]} 58... a4 {[%clk 0:00:07.5]} 59. Kd6
{[%clk 0:00:42.2]} 59... Kb4 {[%clk 0:00:07.5]} 60. Kc7 {[%clk 0:00:41.5]} 60...
b5 {[%clk 0:00:07.6]} 61. Kc6 {[%clk 0:00:41.7]} 61... Kc4 {[%clk 0:00:05.7]}
62. Ra5 {[%clk 0:00:40.5]} 62... b4 {[%clk 0:00:02.1]} 63. Rxa4 {[%clk
0:00:40.2]} 63... Kb3 {[%clk 0:00:02.8]} 64. Kb5 {[%clk 0:00:40.1]} 1-0